[Event "*** Titled Tuesday Blitz"]
[Site "Chess.com"]
[Date "2020.11.03"]
[Round "2"]
[White "Evgeny81"]
[Black "FontVella8"]
[Result "1-0"]
[WhiteElo "2710"]
[BlackElo "2476"]
[TimeControl "180+1"]
[EndTime "10:19:11 PST"]
[Termination "Evgeny81 won by resignation"]

1. Nf3 {[%clk 0:03:00.9]} 1... g6 {[%clk 0:02:58.9]} 2. c4 {[%clk 0:03:00.3]}
2... Bg7 {[%clk 0:02:59.4]} 3. d4 {[%clk 0:03:00.5]} 3... c6 {[%clk 0:02:57.7]}
4. e4 {[%clk 0:02:59.1]} 4... d6 {[%clk 0:02:55.7]} 5. Nc3 {[%clk 0:02:58.6]}
5... a6 {[%clk 0:02:56.1]} 6. a4 {[%clk 0:02:56.6]} 6... a5 {[%clk 0:02:55.7]}
7. Be2 {[%clk 0:02:56.4]} 7... Na6 {[%clk 0:02:55.9]} 8. O-O {[%clk 0:02:56.6]}
8... Nf6 {[%clk 0:02:55.1]} 9. Re1 {[%clk 0:02:53.5]} 9... O-O {[%clk
0:02:55.1]} 10. h3 {[%clk 0:02:53.2]} 10... Qc7 {[%clk 0:02:49.2]} 11. Be3
{[%clk 0:02:48.6]} 11... e5 {[%clk 0:02:49.2]} 12. d5 {[%clk 0:02:48]} 12... Nd7
{[%clk 0:02:45.9]} 13. Rc1 {[%clk 0:02:39.8]} 13... Ndc5 {[%clk 0:02:45.9]} 14.
Bf1 {[%clk 0:02:29.2]} 14... h6 {[%clk 0:02:39.5]} 15. g3 {[%clk 0:02:22.9]}
15... f5 {[%clk 0:02:36.4]} 16. exf5 {[%clk 0:02:20.3]} 16... gxf5 {[%clk
0:02:35.9]} 17. Nh4 {[%clk 0:02:12.6]} 17... Bd7 {[%clk 0:02:08.1]} 18. Bg2
{[%clk 0:01:59.9]} 18... Rae8 {[%clk 0:01:28.1]} 19. Qh5 {[%clk 0:01:55.5]}
19... Rf6 {[%clk 0:01:15.3]} 20. dxc6 {[%clk 0:01:36.2]} 20... bxc6 {[%clk
0:01:13.4]} 21. Rcd1 {[%clk 0:01:31.5]} 21... Ref8 {[%clk 0:01:01.9]} 22. Qe2
{[%clk 0:01:06.4]} 22... Be6 {[%clk 0:00:57.4]} 23. g4 {[%clk 0:00:39.6]} 23...
fxg4 {[%clk 0:00:32.4]} 24. hxg4 {[%clk 0:00:40.5]} 24... Qd7 {[%clk 0:00:25.6]}
25. g5 {[%clk 0:00:36.2]} 25... Rf4 {[%clk 0:00:18.2]} 26. gxh6 {[%clk
0:00:27.3]} 26... Bxh6 {[%clk 0:00:15.2]} 27. Ng6 {[%clk 0:00:27.4]} 27... Bxc4
{[%clk 0:00:14.2]} 28. Qh5 {[%clk 0:00:26.5]} 28... Qg7 {[%clk 0:00:13.2]} 29.
Nxf8 {[%clk 0:00:21.6]} 29... Qxf8 {[%clk 0:00:09.4]} 30. Qg6+ {[%clk
0:00:19.4]} 30... Qg7 {[%clk 0:00:08.6]} 31. Qxg7+ {[%clk 0:00:17.7]} 31... Kxg7
{[%clk 0:00:09.5]} 32. Bxf4 {[%clk 0:00:17.7]} 32... Bxf4 {[%clk 0:00:10.2]} 33.
Rxd6 {[%clk 0:00:17.5]} 33... Nd3 {[%clk 0:00:10.8]} 34. Rd1 {[%clk 0:00:14.7]}
34... Nab4 {[%clk 0:00:10.3]} 35. Ne4 {[%clk 0:00:13.6]} 35... Bb3 {[%clk
0:00:08.9]} 36. R1xd3 {[%clk 0:00:11.4]} 36... Nxd3 {[%clk 0:00:08.7]} 37. Rxd3
{[%clk 0:00:12.3]} 37... Bxa4 {[%clk 0:00:09.2]} 38. Rd7+ {[%clk 0:00:11.9]}
38... Kg6 {[%clk 0:00:09.1]} 39. Nc3 {[%clk 0:00:12.6]} 39... Bc2 {[%clk
0:00:09.2]} 40. Be4+ {[%clk 0:00:12.4]} 40... Bxe4 {[%clk 0:00:09.8]} 41. Nxe4
{[%clk 0:00:12.8]} 41... Kf5 {[%clk 0:00:10.7]} 42. f3 {[%clk 0:00:13]} 42...
Ke6 {[%clk 0:00:10.7]} 43. Rd6+ {[%clk 0:00:13.4]} 1-0

[Event "*** Titled Tuesday Blitz"]
[Site "Chess.com"]
[Date "2020.11.03"]
[Round "2"]
[White "ehrenfeld"]
[Black "Fortitudine"]
[Result "1-0"]
[WhiteElo "2469"]
[BlackElo "2290"]
[TimeControl "180+1"]
[EndTime "10:19:12 PST"]
[Termination "ehrenfeld won on time"]

1. e4 {[%clk 0:03:00.9]} 1... c5 {[%clk 0:02:59.2]} 2. Nc3 {[%clk 0:03:00.3]}
2... e6 {[%clk 0:02:55.7]} 3. f4 {[%clk 0:02:59.5]} 3... Nc6 {[%clk 0:02:54.3]}
4. Nf3 {[%clk 0:02:59.2]} 4... a6 {[%clk 0:02:54.2]} 5. g3 {[%clk 0:02:47.2]}
5... d6 {[%clk 0:02:47.9]} 6. Bg2 {[%clk 0:02:47.1]} 6... Be7 {[%clk 0:02:47.4]}
7. O-O {[%clk 0:02:46.9]} 7... Nf6 {[%clk 0:02:47.2]} 8. d3 {[%clk 0:02:45.8]}
8... O-O {[%clk 0:02:46.5]} 9. h3 {[%clk 0:02:42.8]} 9... Rb8 {[%clk 0:02:45.7]}
10. g4 {[%clk 0:02:42.7]} 10... b5 {[%clk 0:02:42.5]} 11. Ne2 {[%clk 0:02:42.2]}
11... Nd7 {[%clk 0:02:36.7]} 12. Be3 {[%clk 0:02:37.1]} 12... Bb7 {[%clk
0:02:35.2]} 13. Ng3 {[%clk 0:02:35.7]} 13... b4 {[%clk 0:02:25.2]} 14. g5 {[%clk
0:02:32.1]} 14... d5 {[%clk 0:01:56.7]} 15. f5 {[%clk 0:02:27.8]} 15... dxe4
{[%clk 0:01:55.1]} 16. dxe4 {[%clk 0:02:27.5]} 16... Nde5 {[%clk 0:01:46.8]} 17.
Nxe5 {[%clk 0:02:15.9]} 17... Nxe5 {[%clk 0:01:44.1]} 18. Qe2 {[%clk 0:02:08.1]}
18... Bxg5 {[%clk 0:01:28.8]} 19. Bxc5 {[%clk 0:02:05.4]} 19... Re8 {[%clk
0:01:28.7]} 20. Rad1 {[%clk 0:01:59.3]} 20... Qc7 {[%clk 0:01:15]} 21. Bd6
{[%clk 0:01:47.3]} 21... Qb6+ {[%clk 0:01:15.2]} 22. Kh1 {[%clk 0:01:46.9]}
22... Bc6 {[%clk 0:00:53.3]} 23. Bxe5 {[%clk 0:01:33]} 23... Bb5 {[%clk
0:00:52.8]} 24. Qg4 {[%clk 0:01:31.4]} 24... Bxf1 {[%clk 0:00:44.4]} 25. Qxg5
{[%clk 0:01:20.2]} 25... Bxg2+ {[%clk 0:00:39.4]} 26. Kxg2 {[%clk 0:01:19.8]}
26... f6 {[%clk 0:00:24.4]} 27. Bxf6 {[%clk 0:01:17]} 27... Rb7 {[%clk
0:00:20.6]} 28. Be5 {[%clk 0:00:42.6]} 28... exf5 {[%clk 0:00:17.2]} 29. Nxf5
{[%clk 0:00:41.2]} 29... Qg6 {[%clk 0:00:10.1]} 30. Qxg6 {[%clk 0:00:31.8]}
30... hxg6 {[%clk 0:00:11]} 31. Nd6 {[%clk 0:00:32.3]} 31... Rd7 {[%clk
0:00:09.8]} 32. Bg3 {[%clk 0:00:29]} 32... Rxe4 {[%clk 0:00:09.2]} 33. Rd3
{[%clk 0:00:29.1]} 33... Re2+ {[%clk 0:00:07.9]} 34. Kf3 {[%clk 0:00:27.4]}
34... Rxc2 {[%clk 0:00:08.2]} 35. b3 {[%clk 0:00:26.7]} 35... Rxa2 {[%clk
0:00:08.1]} 36. Be5 {[%clk 0:00:24.8]} 36... Rc2 {[%clk 0:00:05.4]} 37. h4
{[%clk 0:00:23.9]} 37... a5 {[%clk 0:00:04.2]} 38. Ke4 {[%clk 0:00:23.3]} 38...
Re2+ {[%clk 0:00:04.1]} 39. Kd5 {[%clk 0:00:22.9]} 39... Rf2 {[%clk 0:00:03.2]}
40. Ke6 {[%clk 0:00:21.1]} 40... Rd8 {[%clk 0:00:02.6]} 41. Rg3 {[%clk
0:00:20.4]} 1-0

[Event "*** Titled Tuesday Blitz"]
[Site "Chess.com"]
[Date "2020.11.03"]
[Round "2"]
[White "Lion-Al-Messi"]
[Black "Sergienko_Sergey"]
[Result "1-0"]
[WhiteElo "2541"]
[BlackElo "2318"]
[TimeControl "180+1"]
[EndTime "10:19:13 PST"]
[Termination "Lion-Al-Messi won by checkmate"]

1. e4 {[%clk 0:03:00.6]} 1... c5 {[%clk 0:02:59.5]} 2. Nf3 {[%clk 0:03:00.9]}
2... a6 {[%clk 0:02:59]} 3. c3 {[%clk 0:03:00.7]} 3... e6 {[%clk 0:02:58.4]} 4.
d4 {[%clk 0:03:00.9]} 4... d5 {[%clk 0:02:58.4]} 5. exd5 {[%clk 0:02:59.7]} 5...
exd5 {[%clk 0:02:58.2]} 6. dxc5 {[%clk 0:03:00.1]} 6... Bxc5 {[%clk 0:02:57.1]}
7. Bd3 {[%clk 0:02:59.7]} 7... Nf6 {[%clk 0:02:54.7]} 8. O-O {[%clk 0:02:59.4]}
8... O-O {[%clk 0:02:54.6]} 9. Nbd2 {[%clk 0:02:59.7]} 9... Nc6 {[%clk 0:02:52]}
10. Nb3 {[%clk 0:02:57.4]} 10... Bb6 {[%clk 0:02:51.4]} 11. Nfd4 {[%clk
0:02:53]} 11... Qd6 {[%clk 0:02:45.2]} 12. Bg5 {[%clk 0:02:51.2]} 12... Bc7
{[%clk 0:02:39]} 13. g3 {[%clk 0:02:45.6]} 13... Bg4 {[%clk 0:02:31.5]} 14. Qc2
{[%clk 0:02:43.7]} 14... h6 {[%clk 0:02:27.9]} 15. Bf4 {[%clk 0:02:42.8]} 15...
Qd8 {[%clk 0:02:24.7]} 16. Bxc7 {[%clk 0:02:42.5]} 16... Qxc7 {[%clk 0:02:24.2]}
17. Rae1 {[%clk 0:02:43]} 17... Bh3 {[%clk 0:02:20.6]} 18. Nf5 {[%clk 0:02:34]}
18... Bxf1 {[%clk 0:02:14.6]} 19. Bxf1 {[%clk 0:02:33.8]} 19... Rfe8 {[%clk
0:02:11.3]} 20. Rd1 {[%clk 0:02:33]} 20... Rad8 {[%clk 0:02:01.8]} 21. Bg2
{[%clk 0:02:32.4]} 21... Ne4 {[%clk 0:01:42.7]} 22. Qe2 {[%clk 0:02:20.5]} 22...
Nxg3 {[%clk 0:01:13.5]} 23. Nxh6+ {[%clk 0:02:18.1]} 23... Kh8 {[%clk
0:01:11.2]} 24. Qd2 {[%clk 0:02:13.6]} 24... Ne2+ {[%clk 0:01:09.7]} 25. Kh1
{[%clk 0:02:12.6]} 25... Kh7 {[%clk 0:00:35.4]} 26. Nf5 {[%clk 0:01:57.3]} 26...
Qf4 {[%clk 0:00:32]} 27. Qd3 {[%clk 0:01:54.5]} 27... Kg8 {[%clk 0:00:28.1]} 28.
Nc5 {[%clk 0:01:29.3]} 28... Re5 {[%clk 0:00:20.5]} 29. Ng3 {[%clk 0:01:23]}
29... Qxf2 {[%clk 0:00:18.2]} 30. Nxb7 {[%clk 0:01:21.3]} 30... Nxg3+ {[%clk
0:00:17.1]} 31. Qxg3 {[%clk 0:01:21.3]} 31... Qxg3 {[%clk 0:00:16.7]} 32. hxg3
{[%clk 0:01:22.2]} 32... Rb8 {[%clk 0:00:15.4]} 33. Nc5 {[%clk 0:01:20.8]} 33...
Rxb2 {[%clk 0:00:14.3]} 34. Nd3 {[%clk 0:01:21.2]} 34... Rh5+ {[%clk 0:00:12]}
35. Kg1 {[%clk 0:01:21.6]} 35... Rxa2 {[%clk 0:00:11.9]} 36. Nf4 {[%clk
0:01:21.9]} 36... Re5 {[%clk 0:00:10.1]} 37. Bxd5 {[%clk 0:01:15.4]} 37... Rc2
{[%clk 0:00:09.1]} 38. Bxc6 {[%clk 0:01:14]} 38... Rxc3 {[%clk 0:00:08.4]} 39.
Bb7 {[%clk 0:01:03.3]} 39... Rxg3+ {[%clk 0:00:07.3]} 40. Kf2 {[%clk 0:01:03.6]}
40... Ra3 {[%clk 0:00:05]} 41. Nd5 {[%clk 0:00:44.1]} 41... Rf5+ {[%clk
0:00:03.6]} 42. Kg2 {[%clk 0:00:39.6]} 42... Rg5+ {[%clk 0:00:03.4]} 43. Kf2
{[%clk 0:00:39.7]} 43... Rf5+ {[%clk 0:00:03.2]} 44. Ke2 {[%clk 0:00:39.4]}
44... Re5+ {[%clk 0:00:03]} 45. Kd2 {[%clk 0:00:38.9]} 45... Kf8 {[%clk
0:00:02.6]} 46. Rc1 {[%clk 0:00:34.8]} 46... Ra2+ {[%clk 0:00:02.4]} 47. Kd3
{[%clk 0:00:34]} 47... Rh5 {[%clk 0:00:02]} 48. Rc8# {[%clk 0:00:33.4]} 1-0

[Event "*** Titled Tuesday Blitz"]
[Site "Chess.com"]
[Date "2020.11.03"]
[Round "2"]
[White "Goryachkina"]
[Black "ChronicUnhappiness"]
[Result "0-1"]
[WhiteElo "2613"]
[BlackElo "2349"]
[TimeControl "180+1"]
[EndTime "10:19:14 PST"]
[Termination "ChronicUnhappiness won on time"]

1. e4 {[%clk 0:03:00.4]} 1... c5 {[%clk 0:02:59.3]} 2. Nf3 {[%clk 0:03:00]} 2...
Nc6 {[%clk 0:02:58.9]} 3. Bb5 {[%clk 0:02:58.5]} 3... g6 {[%clk 0:02:58.5]} 4.
O-O {[%clk 0:02:55.2]} 4... Bg7 {[%clk 0:02:58.2]} 5. Re1 {[%clk 0:02:55.1]}
5... Nf6 {[%clk 0:02:57.9]} 6. e5 {[%clk 0:02:53.9]} 6... Nd5 {[%clk 0:02:57.4]}
7. Nc3 {[%clk 0:02:53.7]} 7... Nc7 {[%clk 0:02:57.4]} 8. Bxc6 {[%clk 0:02:53.7]}
8... dxc6 {[%clk 0:02:55.4]} 9. Ne4 {[%clk 0:02:53.7]} 9... b6 {[%clk
0:02:55.3]} 10. Nf6+ {[%clk 0:02:53.5]} 10... Kf8 {[%clk 0:02:55.1]} 11. Ne4
{[%clk 0:02:53.6]} 11... Ne6 {[%clk 0:02:53.9]} 12. d3 {[%clk 0:02:52.6]} 12...
h6 {[%clk 0:02:51]} 13. a4 {[%clk 0:02:39.5]} 13... a5 {[%clk 0:02:49.1]} 14. h3
{[%clk 0:02:38.5]} 14... Kg8 {[%clk 0:02:47.5]} 15. Be3 {[%clk 0:02:36.6]} 15...
Nd4 {[%clk 0:02:47]} 16. Nxd4 {[%clk 0:02:27.3]} 16... cxd4 {[%clk 0:02:46.4]}
17. Bf4 {[%clk 0:02:27.6]} 17... c5 {[%clk 0:02:38.1]} 18. b3 {[%clk 0:02:23.3]}
18... Bb7 {[%clk 0:02:36.5]} 19. f3 {[%clk 0:02:22.7]} 19... Qd5 {[%clk
0:02:21]} 20. e6 {[%clk 0:02:08.2]} 20... f5 {[%clk 0:02:11.3]} 21. Nd2 {[%clk
0:02:07.5]} 21... Rc8 {[%clk 0:02:06.2]} 22. Nc4 {[%clk 0:01:59.7]} 22... Rc6
{[%clk 0:02:05.9]} 23. Be5 {[%clk 0:01:43.1]} 23... Rxe6 {[%clk 0:01:58.9]} 24.
Bxg7 {[%clk 0:01:42.8]} 24... Kxg7 {[%clk 0:01:58.6]} 25. Rxe6 {[%clk
0:01:40.2]} 25... Qxe6 {[%clk 0:01:57.7]} 26. Qd2 {[%clk 0:01:38.9]} 26... Qf6
{[%clk 0:01:44.1]} 27. Re1 {[%clk 0:01:36]} 27... Bd5 {[%clk 0:01:42.1]} 28. Ne5
{[%clk 0:01:28.6]} 28... Rd8 {[%clk 0:01:41.1]} 29. f4 {[%clk 0:01:18.4]} 29...
g5 {[%clk 0:01:24.2]} 30. Re2 {[%clk 0:01:17.4]} 30... Kh7 {[%clk 0:01:18]} 31.
Kh2 {[%clk 0:01:09.5]} 31... Rg8 {[%clk 0:01:06.5]} 32. g3 {[%clk 0:00:40.6]}
32... Rd8 {[%clk 0:00:46.3]} 33. Qc1 {[%clk 0:00:34.7]} 33... Bb7 {[%clk
0:00:41.9]} 34. Qd2 {[%clk 0:00:31.9]} 34... Rg8 {[%clk 0:00:35.4]} 35. Nd7
{[%clk 0:00:19.1]} 35... Qd6 {[%clk 0:00:33.7]} 36. Ne5 {[%clk 0:00:19]} 36...
Qd5 {[%clk 0:00:32.8]} 37. Kg1 {[%clk 0:00:10]} 37... Qh1+ {[%clk 0:00:30.3]}
38. Kf2 {[%clk 0:00:10.2]} 38... Qh2+ {[%clk 0:00:30.1]} 39. Kf1 {[%clk
0:00:09]} 39... Qxg3 {[%clk 0:00:26.3]} 40. Rf2 {[%clk 0:00:05.1]} 40... Qxh3+
{[%clk 0:00:25.3]} 41. Ke2 {[%clk 0:00:04.1]} 41... Qh5+ {[%clk 0:00:24.3]} 42.
Ke1 {[%clk 0:00:04.1]} 42... g4 {[%clk 0:00:24.8]} 43. Rf1 {[%clk 0:00:02.3]}
43... g3 {[%clk 0:00:24.3]} 44. Rg1 {[%clk 0:00:01.7]} 44... Qh2 {[%clk
0:00:22.6]} 0-1

[Event "*** Titled Tuesday Blitz"]
[Site "Chess.com"]
[Date "2020.11.03"]
[Round "2"]
[White "Semen_Khanin"]
[Black "KaterinaMiroshnik"]
[Result "1-0"]
[WhiteElo "2782"]
[BlackElo "2508"]
[TimeControl "180+1"]
[EndTime "10:19:15 PST"]
[Termination "Semen_Khanin won by resignation"]

1. e4 {[%clk 0:03:00.9]} 1... d6 {[%clk 0:02:59]} 2. d4 {[%clk 0:02:58.3]} 2...
Nf6 {[%clk 0:02:58.9]} 3. Nc3 {[%clk 0:02:58.1]} 3... e5 {[%clk 0:02:58.5]} 4.
Nf3 {[%clk 0:02:58.1]} 4... Nbd7 {[%clk 0:02:57.6]} 5. Bc4 {[%clk 0:02:56.3]}
5... Be7 {[%clk 0:02:54.8]} 6. a4 {[%clk 0:02:56.5]} 6... O-O {[%clk 0:02:53.3]}
7. O-O {[%clk 0:02:55.3]} 7... c6 {[%clk 0:02:51.2]} 8. h3 {[%clk 0:02:54.7]}
8... Qc7 {[%clk 0:02:51.3]} 9. Qe2 {[%clk 0:02:50.8]} 9... b6 {[%clk 0:02:50.3]}
10. Rd1 {[%clk 0:02:50.5]} 10... Bb7 {[%clk 0:02:48.9]} 11. Be3 {[%clk
0:02:49.5]} 11... a6 {[%clk 0:02:47.6]} 12. Ba2 {[%clk 0:02:48.4]} 12... b5
{[%clk 0:02:28.1]} 13. axb5 {[%clk 0:02:48.5]} 13... axb5 {[%clk 0:02:26.4]} 14.
b4 {[%clk 0:02:48.7]} 14... Nb6 {[%clk 0:02:10.2]} 15. Nh4 {[%clk 0:02:14.1]}
15... Rfe8 {[%clk 0:02:00]} 16. Nf5 {[%clk 0:02:10]} 16... Bf8 {[%clk
0:01:58.8]} 17. Qf3 {[%clk 0:01:57]} 17... Nc4 {[%clk 0:01:47.9]} 18. Bxc4
{[%clk 0:01:55.1]} 18... bxc4 {[%clk 0:01:48.8]} 19. dxe5 {[%clk 0:01:37.8]}
19... dxe5 {[%clk 0:01:14]} 20. Bc5 {[%clk 0:01:36.8]} 20... Rxa1 {[%clk
0:01:06.4]} 21. Rxa1 {[%clk 0:01:36.6]} 21... Bc8 {[%clk 0:00:53.8]} 22. Ra7
{[%clk 0:01:22.6]} 22... Qd8 {[%clk 0:00:33.2]} 23. g4 {[%clk 0:00:30.7]} 23...
Bxc5 {[%clk 0:00:25]} 24. bxc5 {[%clk 0:00:29.8]} 24... Bxf5 {[%clk 0:00:24.5]}
25. exf5 {[%clk 0:00:24]} 25... Qc8 {[%clk 0:00:16.9]} 26. Ne4 {[%clk
0:00:22.3]} 26... Nxe4 {[%clk 0:00:16.2]} 27. Qxe4 {[%clk 0:00:21.6]} 27... f6
{[%clk 0:00:14.3]} 28. Qxc4+ {[%clk 0:00:21.3]} 28... Kh8 {[%clk 0:00:14.5]} 29.
Qf7 {[%clk 0:00:21.4]} 29... Rg8 {[%clk 0:00:14.6]} 30. Qc7 {[%clk 0:00:20.1]}
30... Qe8 {[%clk 0:00:09.5]} 31. Kg2 {[%clk 0:00:18.5]} 31... e4 {[%clk
0:00:09.6]} 32. Qe7 {[%clk 0:00:18.1]} 32... Qb8 {[%clk 0:00:08.4]} 33. Rd7
{[%clk 0:00:16.3]} 33... Qf4 {[%clk 0:00:08.1]} 34. Rd8 {[%clk 0:00:14.9]} 34...
Qf3+ {[%clk 0:00:08.3]} 35. Kg1 {[%clk 0:00:15.2]} 35... h6 {[%clk 0:00:05.6]}
36. Rd4 {[%clk 0:00:12.2]} 36... e3 {[%clk 0:00:04.4]} 37. Qxe3 {[%clk
0:00:12.1]} 37... Qxe3 {[%clk 0:00:03]} 38. fxe3 {[%clk 0:00:12.6]} 38... Re8
{[%clk 0:00:03.3]} 39. Kf2 {[%clk 0:00:12.6]} 1-0

[Event "*** Titled Tuesday Blitz"]
[Site "Chess.com"]
[Date "2020.11.03"]
[Round "2"]
[White "almatyonelove"]
[Black "MarkoPe"]
[Result "1-0"]
[WhiteElo "2573"]
[BlackElo "2223"]
[TimeControl "180+1"]
[EndTime "10:19:15 PST"]
[Termination "almatyonelove won on time"]

1. d4 {[%clk 0:02:59.9]} 1... Nf6 {[%clk 0:02:58.9]} 2. c4 {[%clk 0:02:59]} 2...
e6 {[%clk 0:02:59.4]} 3. Nf3 {[%clk 0:02:57.9]} 3... Bb4+ {[%clk 0:02:59.4]} 4.
Bd2 {[%clk 0:02:56.9]} 4... Qe7 {[%clk 0:02:59.6]} 5. g3 {[%clk 0:02:56.6]} 5...
Bxd2+ {[%clk 0:02:57.4]} 6. Nbxd2 {[%clk 0:02:47]} 6... d5 {[%clk 0:02:50.7]} 7.
Bg2 {[%clk 0:02:46.1]} 7... O-O {[%clk 0:02:47.4]} 8. O-O {[%clk 0:02:47]} 8...
b6 {[%clk 0:02:45.5]} 9. cxd5 {[%clk 0:02:46.4]} 9... exd5 {[%clk 0:02:43.9]}
10. Rc1 {[%clk 0:02:46.8]} 10... c6 {[%clk 0:02:41.9]} 11. Ne5 {[%clk
0:02:46.3]} 11... Bb7 {[%clk 0:02:41.8]} 12. Qa4 {[%clk 0:02:44.7]} 12... Qd6
{[%clk 0:02:38]} 13. e3 {[%clk 0:02:38.2]} 13... Nbd7 {[%clk 0:02:37]} 14. Nxc6
{[%clk 0:02:36.9]} 14... Rfc8 {[%clk 0:02:26.6]} 15. Nb4 {[%clk 0:02:30.4]}
15... a5 {[%clk 0:02:19.6]} 16. Nd3 {[%clk 0:02:28.9]} 16... Ba6 {[%clk
0:02:19.4]} 17. Rxc8+ {[%clk 0:02:27.6]} 17... Rxc8 {[%clk 0:02:15.1]} 18. Rc1
{[%clk 0:02:28]} 18... Rxc1+ {[%clk 0:01:59.5]} 19. Nxc1 {[%clk 0:02:28.9]}
19... Qc7 {[%clk 0:01:56.7]} 20. Qd1 {[%clk 0:02:27.7]} 20... h6 {[%clk
0:01:49]} 21. h3 {[%clk 0:02:25.9]} 21... Nb8 {[%clk 0:00:58.1]} 22. Nb1 {[%clk
0:02:24.3]} 22... Nc6 {[%clk 0:00:57.6]} 23. Nc3 {[%clk 0:02:23.7]} 23... Qd6
{[%clk 0:00:50.5]} 24. Qb3 {[%clk 0:02:23]} 24... Ne7 {[%clk 0:00:46.7]} 25. Bf1
{[%clk 0:02:19.6]} 25... Bxf1 {[%clk 0:00:42.2]} 26. Kxf1 {[%clk 0:02:19.5]}
26... h5 {[%clk 0:00:42.7]} 27. N1e2 {[%clk 0:02:16.7]} 27... h4 {[%clk
0:00:42.5]} 28. Kg2 {[%clk 0:02:15.1]} 28... hxg3 {[%clk 0:00:41]} 29. Nxg3
{[%clk 0:02:12.8]} 29... g6 {[%clk 0:00:39.3]} 30. Qb5 {[%clk 0:02:10.5]} 30...
Kg7 {[%clk 0:00:37.8]} 31. a3 {[%clk 0:02:09.6]} 31... Nh7 {[%clk 0:00:30.2]}
32. Qe8 {[%clk 0:02:05.3]} 32... Qe6 {[%clk 0:00:25.8]} 33. Nce2 {[%clk
0:02:03.6]} 33... g5 {[%clk 0:00:17.5]} 34. Nh5+ {[%clk 0:01:58.7]} 34... Kh6
{[%clk 0:00:17.6]} 35. Neg3 {[%clk 0:01:58.8]} 35... f5 {[%clk 0:00:14.4]} 36.
Qh8 {[%clk 0:01:56.1]} 36... Qg6 {[%clk 0:00:12.2]} 37. Qd8 {[%clk 0:01:47.3]}
37... Qe6 {[%clk 0:00:09.9]} 38. Qxe7 {[%clk 0:01:40.7]} 38... Qxe7 {[%clk
0:00:09.3]} 39. Nxf5+ {[%clk 0:01:40.8]} 39... Kxh5 {[%clk 0:00:09.8]} 40. Nxe7
{[%clk 0:01:41.7]} 40... Nf6 {[%clk 0:00:09.2]} 41. Nc8 {[%clk 0:01:38.4]} 41...
b5 {[%clk 0:00:09.2]} 42. Nd6 {[%clk 0:01:35]} 42... b4 {[%clk 0:00:09.5]} 43.
a4 {[%clk 0:01:35.4]} 43... b3 {[%clk 0:00:07.7]} 44. Nb7 {[%clk 0:01:35]} 44...
Ne4 {[%clk 0:00:07.9]} 45. Nxa5 {[%clk 0:01:34.9]} 45... Nc3 {[%clk 0:00:06.6]}
46. Nxb3 {[%clk 0:01:30.9]} 46... Nxa4 {[%clk 0:00:06.5]} 47. Nc5 {[%clk
0:01:23.2]} 47... Nxb2 {[%clk 0:00:06.6]} 48. Ne6 {[%clk 0:01:19.6]} 48... Nc4
{[%clk 0:00:03.4]} 49. Nc7 {[%clk 0:01:18.3]} 49... Nb6 {[%clk 0:00:03.7]} 50.
Kg3 {[%clk 0:01:18.9]} 50... Kg6 {[%clk 0:00:04]} 51. Kg4 {[%clk 0:01:19.2]}
51... Kf6 {[%clk 0:00:04.3]} 52. Kh5 {[%clk 0:01:19.6]} 52... Kf5 {[%clk
0:00:04.2]} 53. Kh6 {[%clk 0:01:18.8]} 53... Kf6 {[%clk 0:00:04.1]} 54. Kh7
{[%clk 0:01:18.6]} 54... Kf5 {[%clk 0:00:03.9]} 55. Kh6 {[%clk 0:01:18.3]} 55...
Kf6 {[%clk 0:00:03.8]} 56. Kh5 {[%clk 0:01:18.5]} 56... Kf5 {[%clk 0:00:04.2]}
57. f3 {[%clk 0:01:16.5]} 57... Kf6 {[%clk 0:00:03.9]} 58. e4 {[%clk 0:01:15.7]}
58... dxe4 {[%clk 0:00:02.8]} 59. fxe4 {[%clk 0:01:16.6]} 59... Nc4 {[%clk
0:00:01.6]} 60. Nd5+ {[%clk 0:01:15.4]} 60... Ke6 {[%clk 0:00:01.4]} 61. Nc3
{[%clk 0:01:14.2]} 1-0

[Event "*** Titled Tuesday Blitz"]
[Site "Chess.com"]
[Date "2020.11.03"]
[Round "2"]
[White "BogdanDeac"]
[Black "AliKa2810"]
[Result "1-0"]
[WhiteElo "2873"]
[BlackElo "2573"]
[TimeControl "180+1"]
[EndTime "10:19:17 PST"]
[Termination "BogdanDeac won on time"]

1. d4 {[%clk 0:03:00.9]} 1... d5 {[%clk 0:02:59.5]} 2. c4 {[%clk 0:02:59.8]}
2... c6 {[%clk 0:02:59.7]} 3. Nf3 {[%clk 0:02:59.7]} 3... Nf6 {[%clk 0:02:59.1]}
4. Nc3 {[%clk 0:02:59.9]} 4... dxc4 {[%clk 0:02:58.1]} 5. a4 {[%clk 0:02:59.6]}
5... Bf5 {[%clk 0:02:57.1]} 6. Ne5 {[%clk 0:02:57.4]} 6... e6 {[%clk 0:02:56.3]}
7. f3 {[%clk 0:02:52.8]} 7... Bb4 {[%clk 0:02:53.3]} 8. Nxc4 {[%clk 0:02:50.9]}
8... O-O {[%clk 0:02:47.3]} 9. Kf2 {[%clk 0:02:47.1]} 9... c5 {[%clk 0:02:44.5]}
10. e4 {[%clk 0:02:41]} 10... Bg6 {[%clk 0:02:40]} 11. Na2 {[%clk 0:02:39]}
11... Nc6 {[%clk 0:02:34.4]} 12. Nxb4 {[%clk 0:02:37.1]} 12... Nxb4 {[%clk
0:02:35]} 13. Qb3 {[%clk 0:02:08.1]} 13... Bxe4 {[%clk 0:01:52.9]} 14. fxe4
{[%clk 0:01:54.4]} 14... Qxd4+ {[%clk 0:01:51.8]} 15. Be3 {[%clk 0:01:40.5]}
15... Qxe4 {[%clk 0:01:49.7]} 16. Be2 {[%clk 0:00:10.9]} 16... Rad8 {[%clk
0:01:19.5]} 17. Rhd1 {[%clk 0:00:09.8]} 17... b6 {[%clk 0:01:09.6]} 18. Rxd8
{[%clk 0:00:07.5]} 18... Rxd8 {[%clk 0:01:08.8]} 19. Rd1 {[%clk 0:00:08]} 19...
Nbd5 {[%clk 0:00:50.1]} 20. h3 {[%clk 0:00:04.7]} 20... h5 {[%clk 0:00:22.6]}
21. Bf3 {[%clk 0:00:04.6]} 21... Qf5 {[%clk 0:00:22.9]} 22. Kg1 {[%clk
0:00:04.5]} 22... h4 {[%clk 0:00:15.5]} 23. Bf2 {[%clk 0:00:04.7]} 23... Qg5
{[%clk 0:00:15]} 24. Ne3 {[%clk 0:00:04.8]} 24... Rd7 {[%clk 0:00:09.4]} 25.
Nxd5 {[%clk 0:00:04.8]} 25... exd5 {[%clk 0:00:08.3]} 26. Qe3 {[%clk 0:00:04.5]}
26... Qf5 {[%clk 0:00:07]} 27. Qe1 {[%clk 0:00:03.8]} 27... g5 {[%clk
0:00:06.5]} 28. Qe2 {[%clk 0:00:03.2]} 28... Kg7 {[%clk 0:00:06.5]} 29. Qd3
{[%clk 0:00:03.5]} 29... Qxd3 {[%clk 0:00:06.2]} 30. Rxd3 {[%clk 0:00:04.4]}
30... d4 {[%clk 0:00:05.9]} 31. Rd2 {[%clk 0:00:03.6]} 31... Nd5 {[%clk
0:00:05.8]} 32. Re2 {[%clk 0:00:03.6]} 32... Nf4 {[%clk 0:00:05.6]} 33. Rd2
{[%clk 0:00:03.5]} 33... f6 {[%clk 0:00:05.5]} 34. b4 {[%clk 0:00:03.9]} 34...
Nd5 {[%clk 0:00:04.1]} 35. bxc5 {[%clk 0:00:03.7]} 35... bxc5 {[%clk 0:00:05]}
36. Rc2 {[%clk 0:00:03.4]} 36... Nc3 {[%clk 0:00:05.3]} 37. a5 {[%clk
0:00:03.5]} 37... Rc7 {[%clk 0:00:04.8]} 38. Be1 {[%clk 0:00:03.6]} 1-0